lending/lending_fUSD_20260328
["ID","MTS","AMOUNT","RATE_DAILY","PERIOD"]
[419006362,1774741833852,-429.0,0.00015563,2]
[419006363,1774741833862,-500.0,0.00015563,2]
[419006364,1774741833871,-703.0,0.00015563,2]
[419006365,1774741833881,-429.0,0.00015563,2]
[419006366,1774741833891,-500.0,0.00015563,2]
[419006367,1774741833900,-703.0,0.00015563,2]
[419006368,1774741833910,-429.0,0.00015563,2]
[419006369,1774741833920,-703.0,0.00015563,2]
[419006370,1774741833930,-429.0,0.00015563,2]
[419006371,1774741833939,-703.0,0.00015563,2]
[419006372,1774741833949,-500.0,0.00015563,2]
[419006373,1774741833958,-500.0,0.00015563,2]
[419006374,1774741833967,-500.0,0.00015563,2]
[419006375,1774741833977,-429.0,0.00015563,2]
[419006376,1774741833987,-703.0,0.00015563,2]
[419006377,1774741834109,-500.0,0.00015563,2]
[419006378,1774741834118,-500.0,0.00015563,2]
[419006379,1774741834128,-500.0,0.00015563,2]
[419006380,1774741834138,-703.0,0.00015563,2]
[419006381,1774741834147,-429.0,0.00015563,2]
[419006382,1774741834156,-500.0,0.00015563,2]
[419006383,1774741834166,-500.0,0.00015563,2]
[419006384,1774741834175,-703.0,0.00015563,2]
[419006385,1774741834184,-500.0,0.00015563,2]
[419006386,1774741834194,-429.0,0.00015563,2]
[419006387,1774741834203,-413.70691073,0.00015563,2]
[419006388,1774741834214,-500.0,0.00015563,2]
[419006389,1774741834223,-703.0,0.00015563,2]
[419006390,1774741834233,-500.0,0.00015563,2]
[419006391,1774741834242,-429.0,0.00015563,2]
[419006392,1774741834251,-500.0,0.00015563,2]
[419006393,1774741834260,-703.0,0.00015563,2]
[419006394,1774741834269,-500.0,0.00015563,2]
[419006395,1774741834279,-429.0,0.00015563,2]
[419006396,1774741834289,-500.0,0.00015563,2]
[419006397,1774741834298,-703.0,0.00015563,2]
[419006398,1774741834308,-500.0,0.00015563,2]
[419006399,1774741834318,-429.0,0.00015563,2]
[419006400,1774741834327,-215.70454676,0.00015563,2]
[419006401,1774741834337,-703.0,0.00015563,2]
[419006402,1774741834346,-500.0,0.00015563,2]
[419006403,1774741834356,-429.0,0.00015563,2]
[419006404,1774741834365,-703.0,0.00015563,2]
[419006405,1774741834375,-500.0,0.00015563,2]
[419006406,1774741834384,-429.0,0.00015563,2]
[419006407,1774741834394,-500.0,0.00015563,2]
[419006408,1774741834403,-429.0,0.00015563,2]
[419006409,1774741834413,-573.96070915,0.00015563,2]
[419006410,1774741834422,-703.0,0.00015563,2]
[419006411,1774741834431,-429.0,0.00015563,2]
[419006412,1774741834441,-703.0,0.00015563,2]
[419006413,1774741834450,-429.0,0.00015563,2]
[419006414,1774741834459,-703.0,0.00015563,2]
[419006415,1774741834468,-429.0,0.00015563,2]
[419006416,1774741834478,-703.0,0.00015563,2]
[419006417,1774741834487,-429.0,0.00015563,2]
[419006418,1774741834496,-703.0,0.00015563,2]
[419006419,1774741834505,-429.0,0.00015563,2]
[419006420,1774741834515,-703.0,0.00015563,2]
[419006421,1774741834524,-429.0,0.00015563,2]
[419006422,1774741834533,-703.0,0.00015563,2]
[419006423,1774741834543,-429.0,0.00015563,2]
[419006424,1774741834552,-703.0,0.00015563,2]
[419006425,1774741834561,-429.0,0.00015563,2]
[419006426,1774741834570,-703.0,0.00015563,2]
[419006427,1774741834579,-429.0,0.00015563,2]
[419006428,1774741834588,-703.0,0.00015563,2]
[419006429,1774741834597,-703.0,0.00015563,2]
[419006430,1774741834606,-429.0,0.00015563,2]
[419006431,1774741834616,-716.0039269,0.00015563,2]
[419006432,1774741834625,-439.69368277,0.00015563,2]
[419006433,1774741834634,-500.0,0.00015563,2]
[419006434,1774741834643,-500.0,0.00015563,2]
[419006435,1774741834652,-500.0,0.00015563,2]
[419006436,1774741834662,-500.0,0.00015563,2]
[419006437,1774741834672,-500.0,0.00015563,2]
[419006438,1774741834682,-500.0,0.00015563,2]
[419006439,1774741834692,-150.0,0.00015563,2]
[419006440,1774741834704,-500.0,0.00015563,2]
[419006441,1774741834712,-500.0,0.00015563,2]
[419006442,1774741834723,-216.24793308,0.00015563,2]
[419006443,1774741834732,-500.0,0.00015563,2]
[419006444,1774741834742,-500.0,0.00015563,2]
[419006445,1774741834751,-500.0,0.00015563,2]
[419006446,1774741834760,-500.0,0.00015563,2]
[419006447,1774741834769,-500.0,0.00015563,2]
[419006448,1774741834778,-647.06402264,0.00015563,2]
[419006449,1774741834787,-500.0,0.00015563,2]
[419006450,1774741834795,-500.0,0.00015563,2]
[419006451,1774741834804,-500.0,0.00015563,2]
[419006452,1774741834813,-500.0,0.00015563,2]
[419006453,1774741834822,-500.0,0.00015563,2]
[419006454,1774741834831,-500.0,0.00015563,2]
[419006455,1774741834840,-500.0,0.00015563,2]
[419006456,1774741834851,-629.67036034,0.00015563,2]
[419006457,1774741834861,-500.0,0.00015563,2]
[419006458,1774741834871,-500.0,0.00015563,2]
[419006459,1774741834880,-500.0,0.00015563,2]
[419006460,1774741834889,-500.0,0.00015563,2]
[419006461,1774741834900,-500.0,0.00015563,2]
[419006462,1774741834910,-500.0,0.00015563,2]
[419006463,1774741834920,-312.61768203,0.00015563,2]
[419006474,1774741840270,-424.0,0.0001556,2]
[419006477,1774741840280,-424.0,0.0001556,2]
[419006478,1774741840290,-424.0,0.0001556,2]
[419006479,1774741840299,-424.0,0.0001556,2]
[419006480,1774741840308,-187.38231797,0.00015563,2]
[419006481,1774741840319,-500.0,0.00015563,2]
[419006482,1774741840330,-500.0,0.00015563,2]
[419006483,1774741840339,-500.0,0.00015563,2]
[419006484,1774741840349,-642.57762092,0.00015563,2]
[419006485,1774741840359,-500.0,0.00015563,2]
[419006486,1774741840368,-500.0,0.00015563,2]
[419006487,1774741840378,-500.0,0.00015563,2]
[419006488,1774741840388,-500.0,0.00015563,2]
[419006489,1774741840397,-500.0,0.00015563,2]
[419006490,1774741840407,-500.0,0.00015563,2]
[419006491,1774741840416,-500.0,0.00015563,2]
[419006492,1774741840425,-500.0,0.00015563,2]
[419006493,1774741840435,-500.0,0.00015563,2]
[419006494,1774741840444,-500.0,0.00015563,2]
[419006495,1774741840454,-500.0,0.00015563,2]
[419006496,1774741840464,-500.0,0.00015563,2]
[419006497,1774741840473,-500.0,0.00015563,2]
[419006498,1774741840483,-500.0,0.00015563,2]
[419006499,1774741840493,-500.0,0.00015563,2]
[419006500,1774741840502,-500.0,0.00015563,2]
[419006501,1774741840512,-500.0,0.00015563,2]
[419006502,1774741840522,-500.0,0.00015563,2]
[419006503,1774741840531,-500.0,0.00015563,2]
[419006504,1774741840541,-500.0,0.00015563,2]
[419006505,1774741840551,-500.0,0.00015563,2]
[419006506,1774741840561,-500.0,0.00015563,2]
[419006507,1774741840571,-500.0,0.00015563,2]
[419006508,1774741840580,-500.0,0.00015563,2]
[419006509,1774741840590,-500.0,0.00015563,2]
[419006510,1774741840599,-500.0,0.00015563,2]
[419006511,1774741840609,-500.0,0.00015563,2]
[419006512,1774741840619,-500.0,0.00015563,2]
[419006513,1774741840630,-577.37301328,0.00015563,2]
[419006514,1774741840640,-500.0,0.00015563,2]
[419006515,1774741840649,-500.0,0.00015563,2]
[419006516,1774741840659,-455.89445997,0.00015563,2]
[419006517,1774741840669,-500.0,0.00015563,2]
[419006518,1774741840678,-500.0,0.00015563,2]
[419006519,1774741840687,-500.0,0.00015563,2]
[419006520,1774741840696,-500.0,0.00015563,2]
[419006521,1774741840705,-500.0,0.00015563,2]
[419006522,1774741840715,-500.0,0.00015563,2]
[419006523,1774741840724,-500.0,0.00015563,2]
[419006524,1774741840733,-479.99718921,0.00015563,2]
[419006525,1774741840743,-500.0,0.00015563,2]
[419006526,1774741840752,-503.28066809,0.00015563,2]
[419006527,1774741840762,-489.0,0.00015563,2]
[419006528,1774741840771,-489.0,0.00015563,2]
[419006529,1774741840781,-489.0,0.00015563,2]
[419006530,1774741840791,-489.0,0.00015563,2]
[419006531,1774741840800,-489.0,0.00015563,2]
[419006532,1774741840810,-489.0,0.00015563,2]
[419006533,1774741840821,-489.0,0.00015563,2]
[419006534,1774741840832,-489.0,0.00015563,2]
[419006535,1774741840842,-489.0,0.00015563,2]
[419006536,1774741840853,-489.0,0.00015563,2]
[419006537,1774741840862,-489.0,0.00015563,2]
[419006538,1774741840877,-489.0,0.00015563,2]
[419006539,1774741840886,-489.0,0.00015563,2]
[419006540,1774741840896,-489.0,0.00015563,2]
[419006541,1774741840905,-489.0,0.00015563,2]
[419006542,1774741840915,-489.0,0.00015563,2]
[419006543,1774741840925,-489.0,0.00015563,2]
[419006544,1774741840935,-489.0,0.00015563,2]
[419006545,1774741840945,-489.0,0.00015563,2]
[419006546,1774741840954,-489.0,0.00015563,2]
[419006547,1774741840964,-489.0,0.00015563,2]
[419006548,1774741841124,-489.0,0.00015563,2]
[419006549,1774741841134,-489.0,0.00015563,2]
[419006550,1774741841144,-503.30017584,0.00015563,2]
[419006551,1774741841154,-1500.0,0.00015563,2]
[419006552,1774741841163,-166.66,0.00015698,2]
[419006553,1774741841173,-163.11,0.00015793,2]
[419006554,1774741841183,-173.83371523,0.00015899,2]
[419006555,1774741841193,-173.83371523,0.00015899,2]
[419006556,1774741841202,-3818.32173057,0.0001596,2]
[419006557,1774741841211,-61492.1796326,0.00015999,2]
[419006558,1774741841220,-5473.6035582,0.00015999,2]
[419006559,1774741841230,-1550.6835515,0.00015999,2]
[419006560,1774741841239,-150692.63109985,0.00016,2]
[419006561,1774741841249,-200.0,0.00016,2]
[419006562,1774741841258,-151.0,0.00016,2]
[419006563,1774741841268,-1523.0,0.00016,2]
[419006564,1774741841277,-151.0,0.00016,2]
[419006565,1774741841287,-1523.0,0.00016,2]
[419006566,1774741841296,-160.28272017,0.00016,2]
[419006567,1774741841305,-151.0,0.00016,2]
[419006568,1774741841314,-1523.0,0.00016,2]
[419006569,1774741841323,-1523.0,0.00016,2]
[419006570,1774741841332,-1523.0,0.00016,2]
[419006571,1774741841342,-1523.0,0.00016,2]
[419006572,1774741841351,-1523.0,0.00016,2]
[419006573,1774741841361,-1611.57442331,0.00016,2]
[419006574,1774741841371,-2000.0,0.00016,2]
[419006575,1774741841380,-200.0,0.00016,2]
[419006576,1774741841390,-1523.0,0.00016,2]
[419006577,1774741841399,-151.0,0.00016,2]
[419006578,1774741841409,-151.0,0.00016,2]
[419006579,1774741841418,-1523.0,0.00016,2]
[419006580,1774741841427,-151.0,0.00016,2]
[419006581,1774741841437,-1523.0,0.00016,2]
[419006582,1774741841447,-151.0,0.00016,2]
[419006583,1774741841457,-1523.0,0.00016,2]
[419006584,1774741841466,-151.0,0.00016,2]
[419006585,1774741841476,-1523.0,0.00016,2]
[419006586,1774741841485,-1523.0,0.00016,2]
[419006587,1774741841495,-1523.0,0.00016,2]
[419006588,1774741841504,-1523.0,0.00016,2]
[419006589,1774741841514,-150.0,0.00016,2]
[419006590,1774741841523,-150.93585401,0.00016,2]
[419006591,1774741841532,-4225.0,0.0001601,2]
[419006592,1774741841541,-4225.0,0.0001604,2]
[419006593,1774741841552,-2899.0,0.00016059,2]
[419006594,1774741841561,-4225.0,0.00016109,2]
[419006595,1774741841570,-456.0,0.00016111,2]
[419006596,1774741841580,-295.0,0.00016111,2]
[419006597,1774741841590,-3381.89,0.00016116,2]
[419006598,1774741841599,-736.0,0.00016156,2]
[419006599,1774741841609,-200.0,0.0001616,2]
[419006600,1774741841618,-2899.0,0.00016269,2]
[419006601,1774741841627,-150.0,0.00016273,2]
[419006602,1774741841637,-4000.0,0.00016282,2]
[419006603,1774741841646,-2000.0,0.00016283,2]
[419006604,1774741841655,-250.0,0.00016289,2]
[419006605,1774741841664,-1568.29582195,0.000163,2]
[419006606,1774741841674,-200.0,0.00016322,2]
[419006607,1774741841684,-407.032032,0.00016368,7]
[419006608,1774741841694,-211.14792,0.00016372,7]
[419006609,1774741841703,-2899.0,0.00016373,2]
[419006610,1774741841713,-2899.0,0.00016374,2]
[419006611,1774741841722,-2000.0,0.000164,2]
[419006612,1774741841732,-204.08,0.00016438,2]
[419006613,1774741841741,-684.71,0.00016438,2]
[419006614,1774741841750,-985.62,0.0001644,2]
[419006615,1774741841760,-2899.0,0.00016459,2]
[419006616,1774741841769,-200.0,0.00016485,2]
[419006617,1774741841778,-4225.0,0.00016492,2]
[419006618,1774741841788,-2000.0,0.000165,2]
[419006619,1774741841798,-2899.0,0.00016516,2]
[419006620,1774741841808,-2899.0,0.00016572,2]
[419006621,1774741841818,-2899.0,0.00016578,2]
[419006622,1774741841828,-2899.0,0.00016588,2]
[419006623,1774741841837,-425.89,0.000166,2]
[419006624,1774741841846,-2000.0,0.000166,2]
[419006625,1774741841856,-823.0,0.00016617,2]
[419006626,1774741841865,-163.11,0.00016624,2]
[419006627,1774741841875,-200.0,0.0001665,2]
[419006628,1774741841884,-4225.0,0.00016667,2]
[419006629,1774741841894,-4000.0,0.0001667,2]
[419006630,1774741841904,-2000.0,0.000167,2]
[419006631,1774741841913,-4225.0,0.00016702,2]
[419006632,1774741841922,-2899.0,0.00016706,2]
[419006633,1774741841931,-4225.0,0.00016708,2]
[419006634,1774741841941,-3292.0,0.00016747,2]
[419006635,1774741841950,-513.0,0.0001675,4]
[419006636,1774741841960,-2899.0,0.0001675,2]
[419006637,1774741841969,-2000.0,0.000168,2]
[419006638,1774741841978,-150.0,0.0001688,2]
[419006639,1774741841987,-174.56987739,0.00016888,2]
[419006640,1774741841996,-2000.0,0.000169,2]
[419006641,1774741842006,-1600.0,0.00016951,2]
[419006642,1774741842015,-2899.0,0.0001696,2]
[419006643,1774741842025,-5958.67359897,0.00017,2]
[419006644,1774741842034,-350.0,0.00017,2]
[419006645,1774741842044,-4000.0,0.00017058,2]
[419006646,1774741842054,-152.1223,0.000172,2]
[419006647,1774741842064,-163.11,0.00017455,2]
[419006648,1774741842073,-1252.0,0.00017566,2]
[419006649,1774741842083,-174.0,0.00017709,2]
[419006650,1774741842093,-2000.0,0.00017764,2]
[419006651,1774741842103,-174.0,0.00017923,2]
[419006652,1774741842112,-174.0,0.00017923,2]
[419006653,1774741842122,-168.12,0.00017955,2]
[419006654,1774741842131,-168.12,0.00017955,2]
[419006655,1774741842140,-398.40045,0.00018005,7]
[419006656,1774741842150,-471.73879827,0.00018167,2]
[419006657,1774741842159,-1152.0,0.00018231,2]
[419006658,1774741842169,-163.11,0.00018287,2]
[419006659,1774741842179,-4609.0,0.00018421,2]
[419006660,1774741842188,-436.53,0.00018442,2]
[419006661,1774741842198,-1600.0,0.00018492,2]
[419006662,1774741842208,-500.0,0.00018493,2]
[419006663,1774741842219,-500.0,0.0001863,2]
[419006664,1774741842230,-500.0,0.00018658,2]
[419006665,1774741842239,-246.33924,0.00018823,7]
[419006666,1774741842248,-179.139282,0.00018823,7]
[419006667,1774741842258,-467.461135,0.00018823,7]
[419006668,1774741842268,-1588.30498183,0.00018845,2]
[419006669,1774741842277,-184.179916,0.00018875,7]
[419006670,1774741842287,-190.07237035,0.00019,2]
[419006671,1774741842296,-400.0,0.00019,2]
[419006672,1774741842306,-1203.0,0.00019101,2]
[419006673,1774741842315,-163.11,0.00019118,2]
[419006674,1774741842324,-1221.3260385,0.00019168,2]
[419006675,1774741842334,-815.05,0.00019178,2]
[419006676,1774741842343,-2000.0,0.000192,2]
[419006677,1774741842353,-533.99546316,0.000192,3]
[419006678,1774741842372,-13720.7598893,0.00019289,2]
[419006679,1774741842382,-153.1948,0.000194,2]
[419006680,1774741842392,-513.0,0.000195,6]
[419006681,1774741842402,-425.89,0.000196,2]
[419006682,1774741842411,-150.0,0.00019814,2]
[419006683,1774741842421,-150.0,0.00019814,2]
[419006684,1774741842430,-150.329,0.00019814,2]
[419006685,1774741842440,-150.0,0.00019814,2]
[419006686,1774741842449,-150.0,0.00019814,2]
[419006687,1774741842460,-272.5146745,0.00019875,2]
[419006688,1774741842470,-163.11,0.00019949,2]
[419006689,1774741842480,-1613.0,0.00020002,2]
[419006690,1774741842490,-3061.5153514,0.00020023,2]
[419006691,1774741842500,-500.0,0.00020072,2]
[419006692,1774741842510,-6453.0,0.00020263,2]
[419006693,1774741842519,-154.46961229,0.00020268,2]
[419006694,1774741842528,-161.0,0.00020318,2]
[419006695,1774741842538,-161.0,0.00020351,2]
[419006696,1774741842548,-1570.0,0.00020384,2]
[419006697,1774741842557,-1345.0,0.00020459,2]
[419006698,1774741842567,-3517.0,0.00020459,2]
[419006699,1774741842578,-1045.0,0.00020459,2]
[419006700,1774741842588,-621.0,0.00020459,2]
[419006701,1774741842598,-150.143,0.00020459,2]
[419006702,1774741842610,-1262.0,0.00020459,2]
[419006703,1774741842622,-415.0,0.00020459,2]
[419006704,1774741842632,-3765.0,0.00020459,2]
[419006705,1774741842642,-717.12081,0.0002046,7]
[419006706,1774741842652,-214.17,0.0002057,2]
[419006707,1774741842663,-174.0,0.00020663,2]
[419006708,1774741842673,-163.11,0.0002078,2]
[419006710,1774741842682,-752.52518023,0.00021,7]
[419006711,1774741842692,-450.0,0.00021,2]
[419006712,1774741842702,-246.33924,0.00021278,7]
[419006713,1774741842711,-179.139282,0.00021278,7]
[419006714,1774741842721,-467.461135,0.00021278,7]
[419006715,1774741842731,-184.179916,0.00021337,7]
[419006716,1774741842741,-815.05,0.00021341,2]
[419006718,1774741842750,-161.0,0.00021445,2]
[419006720,1774741842760,-500.0,0.00021514,2]
[419006722,1774741842769,-154.2748,0.000216,2]
[419006724,1774741842779,-163.11,0.00021611,2]
[419006726,1774741842788,-269.156454,0.00021761,7]
[419006728,1774741842798,-1153.24535537,0.0002187,2]
[419006729,1774741842807,-294.8,0.00021899,14]
[419006730,1774741842816,-5000.0,0.00021918,2]
[419006731,1774741842825,-224.84,0.00021918,2]
[419006732,1774741842836,-156.18,0.00021918,2]
[419006733,1774741842846,-2258.0,0.00021945,2]
[419006734,1774741842856,-700.0,0.0002197,2]
[419006735,1774741842868,-157.0,0.00022,2]
[419006736,1774741842878,-196.0,0.00022,2]
[419006737,1774741842888,-4226.0,0.00022,2]
[419006738,1774741842898,-876.0,0.00022,2]
[419006739,1774741842907,-153.0,0.00022,2]
[419006740,1774741842917,-177.0,0.00022,2]
[419006741,1774741842927,-174.0,0.00022033,2]
[419006742,1774741842936,-1588.30498183,0.00022227,2]
[419006743,1774741842946,-513.0,0.0002225,9]
[419006744,1774741842956,-5101.0,0.0002229,2]
[419006745,1774741842966,-503.0,0.00022356,2]
[419006746,1774741842975,-2807.0,0.00022405,2]
[419006747,1774741842985,-163.11,0.00022443,2]
[419006748,1774741842995,-168.12,0.00022444,2]
[419006749,1774741843004,-166.6,0.000225,7]
[419006750,1774741843014,-425.89,0.000226,7]
[419006751,1774741843024,-779.119907,0.00022631,14]
[419006752,1774741843035,-150.0,0.00022814,2]
[419006753,1774741843047,-150.0,0.00022814,2]
[419006754,1774741843058,-1570.0,0.00022865,3]
[419006755,1774741843069,-2000.0,0.000229,2]
[419006756,1774741843079,-500.0,0.00022956,2]
[419006757,1774741843090,-500.0,0.00023,2]
[419006758,1774741843100,-157.0,0.00023,2]
[419006759,1774741843110,-196.0,0.00023,2]
[419006760,1774741843120,-4226.0,0.00023,2]
[419006761,1774741843130,-876.0,0.00023,2]
[419006762,1774741843139,-167.0,0.00023,2]
[419006763,1774741843150,-177.0,0.00023,2]
[419006764,1774741843160,-1783.04,0.00023181,2]
[419006765,1774741843170,-3517.0,0.00023459,2]
[419006766,1774741843181,-1045.0,0.00023459,2]
[419006767,1774741843191,-621.0,0.00023459,2]
[419006768,1774741843200,-150.0,0.00023459,2]
[419006769,1774741843210,-1262.0,0.00023459,2]
[419006770,1774741843220,-415.0,0.00023459,2]
[419006771,1774741843230,-3765.0,0.00023459,2]
[419006772,1774741843240,-815.05,0.00023504,2]
[419006774,1774741843250,-173.83371519,0.00023504,2]
[419006776,1774741843260,-173.83371519,0.00023504,2]
[419006778,1774741843271,-212.48024,0.00023733,14]
[419006781,1774741843282,-471.73879827,0.00023809,2]
[419006783,1774741843291,-161.0,0.00023825,3]
[419006785,1774741843301,-155.3624,0.000239,2]
[419006787,1774741843311,-157.0,0.00024,2]
[419006789,1774741843322,-196.0,0.00024,2]
[419006791,1774741843332,-4226.0,0.00024,2]
[419006793,1774741843343,-876.0,0.00024,2]
[419006795,1774741843353,-177.0,0.00024,2]
[419006797,1774741843363,-3162.0,0.00024076,2]
[419006799,1774741843373,-150.0,0.00024155,2]
[419006801,1774741843383,-150.0,0.00024155,2]
[419006802,1774741843392,-150.0,0.00024155,2]
[419006803,1774741843402,-150.0,0.00024155,2]
[419006804,1774741843412,-500.0,0.00024398,2]
[419006805,1774741843421,-214.17,0.00024473,2]
[419006806,1774741843434,-178.080432,0.00024552,14]
[419006807,1774741843444,-1570.0,0.0002458,3]
[419006808,1774741843455,-1570.0,0.0002458,3]
[419006809,1774741843464,-1000.0,0.00024658,2]
[419006810,1774741843475,-150.0,0.00024658,2]
[419006811,1774741843485,-201.325442,0.000248,2]
[419006812,1774741843495,-151.0,0.00024834,2]
[419006813,1774741843506,-700.0,0.0002487,2]
[419006814,1774741843516,-150.0,0.00024899,2]
[419006815,1774741843526,-287.37752639,0.00024899,2]
[419006816,1774741843536,-29864.5061748,0.000249,3]
[419006817,1774741843546,-224.84,0.00024918,2]
[419006818,1774741843556,-172.0,0.00025,2]
[419006819,1774741843567,-196.0,0.00025,2]
[419006820,1774741843577,-4226.0,0.00025,2]
[419006821,1774741843587,-876.0,0.00025,2]
[419006822,1774741843598,-513.0,0.00025,11]
[419006823,1774741843608,-177.0,0.00025,2]
[419006824,1774741843619,-300.0,0.000255,2]
[419006825,1774741843630,-150.0,0.000255,2]
[419006826,1774741843640,-1588.30498183,0.00025609,2]
[419006827,1774741843784,-815.05,0.00025667,2]
[419006828,1774741843795,-425.89,0.000257,7]
[419006829,1774741843804,-150.0,0.00025814,2]
[419006830,1774741843815,-500.0,0.0002584,2]
[419006831,1774741843824,-2400.0,0.00025845,5]
[419006832,1774741843834,-2573.0,0.00025845,5]
[419006833,1774741843844,-2508.0,0.00025845,5]
[419006834,1774741843853,-150.0,0.0002589,2]
[419006835,1774741843864,-196.0,0.00026,2]
[419006836,1774741843874,-4226.0,0.00026,2]
[419006837,1774741843884,-876.0,0.00026,2]
[419006838,1774741843894,-177.0,0.00026,2]
[419006839,1774741843905,-156.4577,0.000261,2]
[419006840,1774741843915,-4427.0,0.00026415,2]
[419006841,1774741843925,-3515.0,0.00026459,2]
[419006842,1774741843935,-1045.0,0.00026459,2]
[419006843,1774741843945,-621.0,0.00026459,2]
[419006844,1774741843956,-150.0,0.00026459,2]
[419006845,1774741843965,-1262.0,0.00026459,2]
[419006846,1774741843976,-3765.0,0.00026459,2]
[419006847,1774741843986,-2000.0,0.000266,2]
[419006848,1774741843996,-500.0,0.00026848,2]
[419006849,1774741844006,-531.23717938,0.00026903,2]
[419006850,1774741844015,-200.0,0.00027,2]
[419006851,1774741844025,-4234.18496454,0.00027,2]
[419006852,1774741844034,-876.14281445,0.00027,2]
[419006853,1774741844044,-184.0,0.00027,2]
[419006854,1774741844053,-150.0,0.00027185,2]
[419006855,1774741844063,-500.0,0.00027282,2]
[419006856,1774741844073,-300.0,0.00027397,2]
[419006857,1774741844084,-1456.61,0.00027397,2]
[419006858,1774741844094,-1000.0,0.00027397,20]
[419006859,1774741844105,-24616.32,0.00027397,10]
[419006860,1774741844115,-20513.6,0.00027397,10]
[419006861,1774741844126,-17094.66,0.00027397,10]
[419006862,1774741844137,-14245.55,0.00027397,10]
[419006863,1774741844148,-500.0,0.00027397,5]
[419006864,1774741844157,-240.0,0.00027397,30]
[419006865,1774741844167,-500.0,0.00027397,2]
[419006866,1774741844178,-1600.0,0.00027499,2]
[419006867,1774741844188,-1600.0,0.00027499,2]
[419006868,1774741844198,-1600.0,0.00027499,2]
[419006869,1774741844208,-1600.0,0.00027499,2]
[419006870,1774741844218,-1600.0,0.00027499,2]
[419006871,1774741844228,-1600.0,0.00027499,2]
[419006872,1774741844239,-1600.0,0.00027499,2]
[419006873,1774741844249,-1600.0,0.00027499,2]
[419006874,1774741844259,-1600.0,0.00027499,2]
[419006875,1774741844269,-1204.0,0.00027499,2]
[419006876,1774741844280,-513.0,0.0002775,14]
[419006877,1774741844290,-815.05,0.0002783,2]
[419006878,1774741844300,-224.84,0.00027918,2]
[419006879,1774741844311,-250.0,0.00028116,2]
[419006880,1774741844321,-250.0,0.00028116,2]
[419006881,1774741844332,-250.0,0.00028116,2]
[419006882,1774741844342,-250.0,0.00028116,2]
[419006883,1774741844352,-250.0,0.00028116,2]
[419006884,1774741844362,-250.0,0.00028116,2]
[419006885,1774741844371,-250.0,0.00028116,2]
[419006886,1774741844381,-250.0,0.00028116,2]
[419006887,1774741844391,-169.0,0.00028116,2]
[419006888,1774741844400,-500.0,0.00028269,120]
[419006889,1774741844409,-157.5606,0.000284,2]
[419006890,1774741844418,-1000.0,0.000285,2]
[419006891,1774741844428,-312.0,0.000285,2]
[419006892,1774741844437,-953.0,0.000285,2]
[419006893,1774741844446,-150.0,0.00028544,2]
[419006894,1774741844456,-500.0,0.00028724,2]
[419006895,1774741844466,-498.31463292,0.00028767,2]